fUST/lending_fUST_20240522
["ID","MTS","AMOUNT","RATE_DAILY","PERIOD"]
[327707779,1716341438863,-155.96022535,0.00032233,2]
[327707780,1716341438872,-6150.72782323,0.00032333,7]
[327707781,1716341438883,-7054.63482151,0.00032333,7]
[327707782,1716341438895,-527.904,0.00032333,7]
[327707783,1716341438906,-6429.28000001,0.00032333,7]
[327707804,1716341443509,-7009.41631501,0.00032333,7]
[327707876,1716341444348,-5279.56075261,0.00032333,7]
[327707879,1716341444357,-11700.45598681,0.00032333,3]
[327708211,1716341447693,-879.58890206,0.00032333,3]
[327708212,1716341447704,-153.0,0.00032603,2]
[327708213,1716341447717,-306.0,0.00032603,2]
[327708214,1716341447728,-153.0,0.00032603,2]
[327708216,1716341447738,-1000.0,0.00032799,5]
[327708218,1716341447747,-6127.3165322,0.000328,2]
[327708220,1716341447757,-74411.9691851,0.000328,2]
[327709814,1716341522300,150.0,0.00023,30]
[327709815,1716341526922,943.04117326,0.00015,2]
[327709816,1716341529124,150.0,0.00023,30]
[327709817,1716341535943,150.0,0.00023,30]
[327709818,1716341542844,150.0,0.00023,30]
[327709820,1716341549401,150.0,0.00023,30]
[327709821,1716341555871,295.40496746,0.00023,30]
[327709889,1716342639284,-159.50149497,0.00020811,2]
[327709890,1716342639294,-6388.74208983,0.0002091,2]
[327709891,1716342639306,-7009.2,0.0002091,2]
[327709892,1716342639317,-3404.20999999,0.0002091,2]
[327709893,1716342639328,-3416.65110021,0.0002091,2]
[327709925,1716342643874,-3394.22676965,0.0002091,2]
[327709941,1716342644604,-8340.25252992,0.0002091,2]
[327709942,1716342644618,-2998.19309339,0.0002091,2]
[327709943,1716342644628,-31527.71986741,0.00020911,2]
[327709944,1716342644638,-151.38566366,0.00021288,2]
[327709945,1716342644649,-9896.71075127,0.00021388,2]
[327709946,1716342644661,-1671.48449313,0.00021388,2]
[327709947,1716342644671,-1272.6136788,0.00023,7]
[327709948,1716342644682,-4282.88932285,0.00023,10]
[327709949,1716342644691,-159.789841,0.00024384,2]
[327709950,1716342644702,-170.98476,0.00024384,2]
[327709951,1716342644714,-362.20721548,0.00025204,2]
[327709952,1716342644724,-159.50149494,0.00025536,2]
[327709953,1716342644734,-593.51966769,0.000267,120]
[327709954,1716342644743,-151.38566364,0.00027295,2]
[327709955,1716342644753,-181.07,0.00027386,3]
[327709956,1716342644762,-202.77558718,0.00027396,2]
[327709957,1716342644771,-478.84986663,0.00027396,2]
[327709958,1716342644780,-656.34049183,0.00027396,2]
[327709959,1716342644790,-656.34049183,0.00027396,2]
[327709960,1716342644800,-656.34049183,0.00027396,2]
[327709961,1716342644814,-656.34049183,0.00027396,2]
[327709962,1716342644824,-656.34049183,0.00027396,2]
[327709963,1716342644833,-656.34049183,0.00027396,2]
[327709964,1716342644842,-656.34049183,0.00027396,2]
[327709965,1716342644853,-656.34049183,0.00027396,2]
[327709966,1716342644862,-656.34049183,0.00027396,2]
[327709967,1716342644871,-656.34049183,0.00027396,2]
[327709968,1716342644880,-656.34049183,0.00027396,2]
[327709969,1716342644889,-656.34049183,0.00027396,2]
[327709970,1716342644902,-656.34049183,0.00027396,2]
[327709971,1716342644913,-656.34049183,0.00027396,2]
[327709972,1716342644922,-656.34049183,0.00027396,2]
[327709973,1716342644932,-656.34049183,0.00027396,2]
[327709974,1716342644941,-656.34049183,0.00027396,2]
[327709975,1716342644950,-656.34049183,0.00027396,2]
[327709976,1716342644959,-656.34049183,0.00027396,2]
[327709977,1716342644968,-656.34049183,0.00027396,2]
[327709978,1716342644978,-656.34049183,0.00027396,2]
[327709979,1716342644987,-656.34049183,0.00027396,2]
[327709980,1716342644996,-656.34049183,0.00027396,2]
[327709981,1716342645005,-656.34049183,0.00027396,2]
[327709982,1716342645014,-656.34049183,0.00027396,2]
[327709983,1716342645023,-656.34049183,0.00027396,2]
[327709984,1716342645033,-656.34049183,0.00027396,2]
[327709985,1716342645042,-656.34049183,0.00027396,2]
[327709986,1716342645051,-656.34049183,0.00027396,2]
[327709987,1716342645060,-656.34049183,0.00027396,2]
[327709988,1716342645070,-656.34049183,0.00027396,2]
[327709989,1716342645079,-656.34049183,0.00027396,2]
[327709990,1716342645088,-656.34049183,0.00027396,2]
[327709991,1716342645098,-656.34049183,0.00027396,2]
[327709992,1716342645108,-656.34049183,0.00027396,2]
[327709993,1716342645117,-656.34049183,0.00027396,2]
[327709994,1716342645126,-656.34049183,0.00027396,2]
[327709995,1716342645135,-656.34049183,0.00027396,2]
[327709996,1716342645144,-45.93946289,0.00027397,5]
[327710000,1716342646843,-954.06053711,0.00027397,5]
[327710001,1716342646853,-277.75289115,0.00027397,2]
[327710002,1716342646863,-159.50149494,0.00030261,2]
[327710003,1716342646872,-217.28,0.00031241,3]
[327710004,1716342646990,-39910.61062664,0.00031251,7]
[327710005,1716342647000,-21232.75725051,0.00031251,7]
[327710006,1716342647011,-926.508136,0.00031251,2]
[327710007,1716342647020,-926.508136,0.00031251,2]
[327710008,1716342647030,-926.508136,0.00031251,2]
[327710009,1716342647040,-926.508136,0.00031251,2]
[327710010,1716342647049,-926.508136,0.00031251,2]
[327710011,1716342647059,-926.508136,0.00031251,2]
[327710012,1716342647068,-926.508136,0.00031251,2]
[327710013,1716342647078,-926.508136,0.00031251,2]
[327710014,1716342647087,-926.508136,0.00031251,2]
[327710015,1716342647096,-926.508136,0.00031251,2]
[327710016,1716342647106,-151.0,0.00031251,2]
[327710017,1716342647116,-153.54733,0.00031251,2]
[327710018,1716342647125,-156.363264,0.00031251,2]
[327710019,1716342647135,-156.363264,0.00031251,2]
[327710020,1716342647146,-156.363264,0.00031251,2]
[327710021,1716342647156,-156.363264,0.00031251,2]
[327710022,1716342647165,-156.363264,0.00031251,2]
[327710023,1716342647174,-156.363264,0.00031251,2]
[327710024,1716342647183,-156.363264,0.00031251,2]
[327710025,1716342647193,-156.363264,0.00031251,2]
[327710026,1716342647202,-156.363264,0.00031251,2]
[327710027,1716342647211,-156.363264,0.00031251,2]
[327710028,1716342647221,-158.27596,0.00031251,2]
[327710029,1716342647230,-151.0,0.00031251,2]
[327710030,1716342647239,-151.537786,0.00031251,2]
[327710031,1716342647249,-176.60797,0.00031251,2]
[327710032,1716342647258,-176.60797,0.00031251,2]
[327710033,1716342647268,-176.60797,0.00031251,2]
[327710034,1716342647277,-176.60797,0.00031251,2]
[327710035,1716342647287,-176.60797,0.00031251,2]
[327710036,1716342647296,-151.0,0.00031251,2]
[327710037,1716342647305,-176.60797,0.00031251,2]
[327710038,1716342647314,-151.0,0.00031251,2]
[327710039,1716342647324,-176.60797,0.00031251,2]
[327710040,1716342647334,-176.60797,0.00031251,2]
[327710041,1716342647343,-151.0,0.00031251,2]
[327710042,1716342647352,-151.0,0.00031251,2]
[327710043,1716342647362,-151.0,0.00031251,2]
[327710044,1716342647371,-151.0,0.00031251,2]
[327710045,1716342647380,-153.10665,0.00031251,2]
[327710046,1716342647389,-176.60797,0.00031251,2]
[327710047,1716342647398,-176.60797,0.00031251,2]
[327710048,1716342647407,-176.60797,0.00031251,2]
[327710049,1716342647416,-176.60797,0.00031251,2]
[327710050,1716342647425,-176.60797,0.00031251,2]
[327710051,1716342647434,-176.60797,0.00031251,2]
[327710052,1716342647443,-176.60797,0.00031251,2]
[327710053,1716342647451,-176.60797,0.00031251,2]
[327710054,1716342647460,-159.789841,0.0003189,2]
[327710055,1716342647469,-478.91544271,0.00032,120]
[327710056,1716342647478,-212.77775707,0.00032471,3]
[327710057,1716342647487,-156.17547144,0.00032472,4]
[327710058,1716342647497,-150.0,0.000326,12]
[327710059,1716342647506,-57640.48900378,0.000328,2]
[327710060,1716342647518,-3794.91649965,0.000328,2]
[327710117,1716343833537,-167.2671613,0.00024384,2]
[327710119,1716343833547,-160.956855,0.00024384,2]
[327710121,1716343833557,-151.0,0.00024664,5]
[327710123,1716343833567,-151.0,0.00024664,5]
[327710124,1716343833577,-1467.8,0.00025,2]
[327710126,1716343833586,-362.20721548,0.00025204,2]
[327710127,1716343833596,-151.0,0.0002546,5]
[327710128,1716343833605,-151.0,0.00026257,5]
[327710129,1716343833614,-151.0,0.00027053,5]
[327710130,1716343833623,-151.0,0.00027849,5]
[327710131,1716343833633,-5611.87,0.00029137,2]
[327710132,1716343833642,-151.96649416,0.000307,2]
[327710133,1716343833652,-160.956855,0.0003189,2]
[327710134,1716343833661,-1257.25695467,0.000325,2]
[327710135,1716343833670,-29303.92828342,0.000328,2]
[327710203,1716343846354,-19399.61892553,0.000328,2]
[327710214,1716343865446,155.0,0.00015,2]
[327710223,1716343891388,274.46479269,0.000165,2]
[327710315,1716344537917,155.0,9.999e-05,2]
[327710332,1716344829330,-398.31368294,0.000189,2]
[327710466,1716345038919,-155.0,0.00020911,2]
[327710467,1716345038928,-109.05799984,0.00020912,2]
[327710584,1716345080789,265.54245529,0.000189,2]
[327710621,1716345382069,177.02830353,0.000189,2]
[327710653,1716345683329,150.0,0.000189,2]
[327710666,1716345984811,150.0,0.000189,2]
[327710667,1716346006825,322.05028944,9.999e-05,2]
[327710725,1716346238615,-163.1393155,0.00020076,2]
[327710727,1716346238624,-275.8266845,0.00020912,2]
[327710729,1716346238636,-22.3589213,0.00020912,2]
[327710731,1716346238645,-3379.91107873,0.00020912,2]
[327710798,1716346241475,-638.36546201,0.00020912,2]
[327710859,1716346244569,-567.5377703,0.00020912,2]
[327710872,1716346312468,2000.0,0.00019,2]
[327710948,1716347432309,-751.00386803,0.00020375,2]
[327710970,1716347438566,-1711.74886187,0.00020375,2]
[327710971,1716347438576,-159.71751739,0.00020836,2]
[327710972,1716347438585,-5127.33362074,0.00020912,2]
[327711035,1716347475673,273.37336231,9.9e-05,2]
[327711039,1716347486386,155.0,0.00015,2]
[327711041,1716347504078,181.50612434,9.999e-05,2]
[327711047,1716347521761,6336.86686572,9.999e-05,2]
[327711049,1716347543415,274.46479269,0.000165,2]
[327711050,1716347552344,174.67407508,9.999e-05,2]
[327711052,1716347558754,684.90731694,9.999e-05,2]
[327711117,1716348093905,150.0,0.000189,2]
[327711126,1716348179926,164.12682028,0.00018938,2]
[327711136,1716348321790,379.4037501,0.00018087,2]
[327711138,1716348337527,7762.74216134,0.0001839,2]
[327711165,1716348632895,-174.67407508,0.00018137,2]
[327711166,1716348632904,-2467.15169101,0.00018137,2]
[327711167,1716348632913,-684.90731694,0.00018138,2]
[327711168,1716348632922,-34951.47558299,0.00018138,2]
[327711169,1716348632935,-3441.48151184,0.00018139,2]
[327711195,1716348640482,-4109.16328342,0.00018139,2]
[327711196,1716348640499,-379.39149771,0.00018139,2]
[327711207,1716348641048,-304.71368244,0.00018139,2]
[327711275,1716348645626,-1204.18212563,0.00018139,2]
[327711277,1716348645638,-124.40079856,0.00018139,2]
[327711279,1716348645648,-181.50612434,0.0001814,2]
[327711281,1716348645658,-161.20918129,0.00018141,2]
[327711283,1716348645667,-250.0,0.00018245,2]
[327711284,1716348645677,-151.0,0.0001839,2]
[327711285,1716348645687,-151.0,0.0001839,2]
[327711286,1716348645697,-151.0,0.0001839,2]
[327711287,1716348645706,-151.0,0.0001839,2]
[327711288,1716348645719,-152.565347,0.0001839,2]
[327711289,1716348645729,-819.889661,0.0001839,2]
[327711290,1716348645739,-151.0,0.0001839,2]
[327711291,1716348645749,-819.889661,0.0001839,2]
[327711292,1716348645760,-151.0,0.0001839,2]
[327711293,1716348645770,-151.0,0.0001839,2]
[327711294,1716348645779,-463.254068,0.0001839,2]
[327711295,1716348645790,-463.254068,0.0001839,2]
[327711296,1716348645799,-463.254068,0.0001839,2]
[327711297,1716348645810,-463.254068,0.0001839,2]
[327711298,1716348645820,-151.0,0.0001839,2]
[327711299,1716348645829,-151.0,0.0001839,2]
[327711300,1716348645838,-151.0,0.0001839,2]
[327711301,1716348645849,-253.431878,0.0001839,2]
[327711302,1716348645858,-151.0,0.0001839,2]
[327711303,1716348645867,-151.0,0.0001839,2]
[327711304,1716348645877,-151.0,0.0001839,2]
[327711305,1716348645887,-151.0,0.0001839,2]
[327711306,1716348645897,-151.0,0.0001839,2]
[327711307,1716348645907,-152.768955,0.0001839,2]
[327711308,1716348645917,-5159.65086056,0.0001839,2]
[327711309,1716348645927,-151.38566364,0.00018932,2]
[327711310,1716348645937,-158.445553,0.00019141,2]
[327711311,1716348645947,-151.0,0.00019141,2]
[327711312,1716348645956,-151.0,0.00019141,2]
[327711313,1716348645966,-151.0,0.00019141,2]
[327711314,1716348645976,-151.0,0.00019141,2]
[327711315,1716348645985,-233.071628,0.00019141,2]
[327711316,1716348645995,-233.071628,0.00019141,2]
[327711317,1716348646005,-635.446122,0.00019141,2]
[327711318,1716348646014,-635.446122,0.00019141,2]
[327711319,1716348646024,-868.959776,0.00019141,2]
[327711320,1716348646034,-868.959776,0.00019141,2]
[327711321,1716348646044,-151.0,0.00019141,2]
[327711323,1716348646053,-200.849789,0.00019141,2]
[327711325,1716348646063,-151.0,0.00019141,2]
[327711326,1716348646072,-153.412212,0.00019141,2]
[327711327,1716348646082,-151.0,0.00019141,2]
[327711329,1716348646092,-151.0,0.00019141,2]
[327711330,1716348646102,-151.0,0.00019141,2]
[327711331,1716348646111,-151.0,0.00019141,2]
[327711332,1716348646121,-151.0,0.00019141,2]
[327711333,1716348646130,-151.0,0.00019141,2]
[327711334,1716348646139,-246.538903,0.00019141,2]
[327711335,1716348646149,-819.889661,0.00019141,2]
[327711336,1716348646160,-819.889661,0.00019141,2]
[327711337,1716348646169,-819.889661,0.00019141,2]
[327711338,1716348646179,-151.0,0.00019141,2]
[327711339,1716348646189,-819.889661,0.00019141,2]
[327711340,1716348646200,-151.0,0.00019141,2]
[327711341,1716348646210,-819.889661,0.00019141,2]
[327711342,1716348646219,-151.0,0.00019141,2]
[327711343,1716348646230,-151.0,0.00019141,2]
[327711344,1716348646240,-151.0,0.00019141,2]
[327711345,1716348646250,-819.889661,0.00019141,2]
[327711346,1716348646259,-819.889661,0.00019141,2]
[327711347,1716348646269,-819.889661,0.00019141,2]
[327711348,1716348646279,-819.889661,0.00019141,2]
[327711349,1716348646289,-151.0,0.00019141,2]
[327711350,1716348646298,-819.889661,0.00019141,2]
[327711351,1716348646308,-151.0,0.00019141,2]
[327711352,1716348646318,-235.800895,0.00019141,2]
[327711353,1716348646327,-152.288155,0.00019141,2]
[327711354,1716348646337,-463.254068,0.00019141,2]
[327711355,1716348646347,-463.254068,0.00019141,2]
[327711356,1716348646357,-463.254068,0.00019141,2]
[327711357,1716348646366,-463.254068,0.00019141,2]
[327711358,1716348646376,-463.254068,0.00019141,2]
[327711359,1716348646385,-463.254068,0.00019141,2]
[327711360,1716348646395,-463.254068,0.00019141,2]
[327711361,1716348646405,-463.254068,0.00019141,2]
[327711362,1716348646414,-463.254068,0.00019141,2]
[327711363,1716348646424,-463.254068,0.00019141,2]
[327711364,1716348646433,-463.254068,0.00019141,2]
[327711365,1716348646445,-463.254068,0.00019141,2]
[327711366,1716348646455,-463.254068,0.00019141,2]
[327711367,1716348646464,-463.254068,0.00019141,2]
[327711368,1716348646474,-163.492418,0.00019178,2]
[327711369,1716348646483,-186.71,0.00019744,3]
[327711370,1716348646493,-560.14,0.00019744,3]
[327711371,1716348646502,-151.0,0.00019746,2]
[327711372,1716348646512,-819.889661,0.00019746,2]
[327711373,1716348646521,-151.0,0.00019746,2]
[327711374,1716348646531,-819.889661,0.00019746,2]
[327711375,1716348646541,-463.254068,0.00019746,2]
[327711376,1716348646551,-463.254064,0.00019746,2]
[327711377,1716348646560,-151.886214,0.00019754,2]
[327711378,1716348646570,-151.0,0.00019754,2]
[327711379,1716348646580,-151.0,0.00019754,2]
[327711380,1716348646589,-164.733117,0.00019754,2]
[327711381,1716348646599,-151.0,0.00019754,2]
[327711382,1716348646609,-153.27898,0.00019754,2]
[327711383,1716348646618,-151.0,0.00019754,2]
[327711384,1716348646628,-151.0,0.00019754,2]
[327711385,1716348646638,-151.0,0.00019754,2]
[327711386,1716348646647,-288.014521,0.00019754,2]
[327711387,1716348646657,-151.0,0.00019754,2]
[327711388,1716348646666,-151.0,0.00019754,2]
[327711389,1716348646678,-151.0,0.00019754,2]
[327711390,1716348646688,-151.0,0.00019754,2]
[327711391,1716348646699,-236.326232,0.00019754,2]
[327711392,1716348646710,-151.658429,0.00019754,2]
[327711393,1716348646722,-151.0,0.00019754,2]
[327711394,1716348646731,-151.0,0.00019754,2]
[327711395,1716348646741,-194.399871,0.00019754,2]
[327711396,1716348646751,-233.071628,0.00019754,2]
[327711397,1716348646760,-233.071628,0.00019754,2]
[327711398,1716348646770,-233.071628,0.00019754,2]
[327711399,1716348646780,-233.071628,0.00019754,2]
[327711400,1716348646791,-233.071628,0.00019754,2]
[327711401,1716348646801,-233.071628,0.00019754,2]
[327711402,1716348646810,-233.071628,0.00019754,2]
[327711403,1716348646820,-233.071628,0.00019754,2]
[327711404,1716348646829,-233.071628,0.00019754,2]
[327711405,1716348646839,-233.071628,0.00019754,2]
[327711406,1716348646848,-635.446122,0.00019754,2]
[327711407,1716348646857,-233.071628,0.00019754,2]
[327711408,1716348646867,-635.446122,0.00019754,2]
[327711409,1716348646877,-233.071628,0.00019754,2]
[327711410,1716348646887,-635.446122,0.00019754,2]
[327711411,1716348646896,-635.446122,0.00019754,2]
[327711412,1716348646906,-233.071628,0.00019754,2]
[327711413,1716348646915,-635.446122,0.00019754,2]
[327711414,1716348646925,-233.071628,0.00019754,2]
[327711415,1716348646935,-233.071628,0.00019754,2]
[327711416,1716348646945,-635.446122,0.00019754,2]
[327711417,1716348646954,-233.071628,0.00019754,2]
[327711418,1716348646964,-233.071628,0.00019754,2]
[327711419,1716348646974,-233.071622,0.00019754,2]
[327711420,1716348646983,-635.446122,0.00019754,2]
[327711421,1716348647111,-635.446122,0.00019754,2]
[327711422,1716348647121,-635.446122,0.00019754,2]
[327711423,1716348647131,-635.446122,0.00019754,2]
[327711424,1716348647141,-635.446122,0.00019754,2]
[327711425,1716348647150,-635.446122,0.00019754,2]
[327711426,1716348647160,-868.959776,0.00019754,2]
[327711427,1716348647169,-868.959776,0.00019754,2]
[327711428,1716348647179,-868.959776,0.00019754,2]
[327711429,1716348647189,-868.959776,0.00019754,2]
[327711430,1716348647201,-868.959776,0.00019754,2]
[327711431,1716348647211,-868.959776,0.00019754,2]
[327711432,1716348647220,-868.959776,0.00019754,2]
[327711433,1716348647229,-868.959776,0.00019754,2]
[327711434,1716348647239,-868.959776,0.00019754,2]
[327711435,1716348647248,-868.959776,0.00019754,2]
[327711436,1716348647258,-868.959776,0.00019754,2]
[327711437,1716348647267,-110.01394261,0.00019754,2]
[327711438,1716348647280,-758.94583339,0.00019754,2]
[327711439,1716348647290,-868.959776,0.00019754,2]
[327711440,1716348647299,-868.959776,0.00019754,2]
[327711441,1716348647309,-868.959776,0.00019754,2]
[327711442,1716348647319,-868.959776,0.00019754,2]
[327711443,1716348647328,-868.959776,0.00019754,2]
[327711444,1716348647338,-868.959768,0.00019754,2]
[327711445,1716348647347,-151.0,0.00019754,2]
[327711446,1716348647357,-151.0,0.00019754,2]
[327711447,1716348647367,-151.0,0.00019754,2]
[327711448,1716348647376,-819.889661,0.00019754,2]
[327711449,1716348647386,-819.889661,0.00019754,2]
[327711450,1716348647397,-819.889661,0.00019754,2]
[327711451,1716348647406,-151.0,0.00019754,2]
[327711452,1716348647415,-151.0,0.00019754,2]
[327711453,1716348647425,-151.0,0.00019754,2]
[327711454,1716348647435,-819.889661,0.00019754,2]
[327711455,1716348647447,-819.889661,0.00019754,2]
[327711456,1716348647457,-819.889661,0.00019754,2]
[327711457,1716348647466,-151.0,0.00019755,2]
[327711458,1716348647477,-153.176804,0.00019755,2]
[327711459,1716348647486,-151.0,0.00019756,2]
[327711460,1716348647496,-153.300203,0.00019756,2]
[327711461,1716348647506,-151.0,0.00019756,2]
[327711462,1716348647516,-151.0,0.00019756,2]
[327711463,1716348647526,-151.0,0.00019756,2]
[327711464,1716348647535,-151.0,0.00019756,2]
[327711465,1716348647545,-171.331335,0.00019756,2]
[327711466,1716348647555,-151.0,0.00019756,2]
[327711467,1716348647564,-151.547111,0.00019756,2]
[327711468,1716348647574,-151.0,0.00019756,2]
[327711469,1716348647584,-151.0,0.00019756,2]
[327711470,1716348647593,-157.499253,0.00019756,2]
[327711471,1716348647604,-151.0,0.00019756,2]
[327711472,1716348647613,-151.0,0.00019756,2]
[327711473,1716348647622,-152.47377,0.00019756,2]
[327711474,1716348647632,-635.446122,0.00019756,2]
[327711475,1716348647641,-635.446122,0.00019756,2]
[327711476,1716348647651,-635.446122,0.00019756,2]
[327711477,1716348647660,-635.446122,0.00019756,2]
[327711478,1716348647670,-635.446122,0.00019756,2]
[327711479,1716348647681,-635.446114,0.00019756,2]
[327711480,1716348647690,-151.0,0.00020174,2]
[327711481,1716348647701,-151.0,0.00020174,2]
[327711482,1716348647713,-155.198445,0.00020174,2]
[327711483,1716348647726,-151.0,0.00020275,2]
[327711484,1716348647735,-151.0,0.00020275,2]
[327711485,1716348647745,-217.235095,0.00020275,2]
[327711486,1716348647755,-289.15406,0.00020275,2]
[327711487,1716348647767,-1029.2952083,0.00020275,2]
[327711488,1716348647777,-299.46282,0.00020548,2]
[327711489,1716348647787,-299.46282,0.00020548,2]
[327711490,1716348647797,-299.46282,0.00020548,2]
[327711491,1716348647806,-299.46282,0.00020548,2]
[327711492,1716348647816,-299.46282,0.00020548,2]
[327711493,1716348647826,-299.46282,0.00020548,2]
[327711494,1716348647835,-299.46282,0.00020548,2]
[327711495,1716348647845,-299.46282,0.00020548,2]
[327711496,1716348647855,-299.46282,0.00020548,2]
[327711497,1716348647865,-299.46282,0.00020548,2]
[327711498,1716348647875,-299.46282,0.00020548,2]
[327711499,1716348647884,-299.46282,0.00020548,2]
[327711500,1716348647894,-299.46282,0.00020548,2]
[327711501,1716348647903,-212.38605446,0.00020548,2]
[327711583,1716349839229,-181.50612434,0.00019414,2]
[327711584,1716349839238,-170.68488,0.00019415,2]
[327711585,1716349839248,-250.0,0.00019684,2]
[327711586,1716349839258,-4261.74352086,0.00020458,2]
[327711587,1716349839267,-417.39872503,0.00020522,2]
[327711588,1716349839276,-1016.46120489,0.00020547,2]
[327711589,1716349839286,-697.30554487,0.00020548,10]
[327711848,1716351037954,-163.492418,0.00019524,2]
[327711849,1716351037964,-420.85421481,0.00020282,2]
[327711850,1716351037973,-390.52,0.00020356,2]
[327711851,1716351037983,-400.87359493,0.00020548,10]
[327711852,1716351037995,-3184.71018305,0.00020548,10]
[327711853,1716351038004,-350.38260954,0.00020702,2]
[327711854,1716351038017,-288.0,0.000209,2]
[327711855,1716351038026,-1097.73752106,0.00020912,2]
[327711863,1716351040335,-9239.55710665,0.00020912,2]
[327711864,1716351040345,-236.33058596,0.00020912,2]
[327711865,1716351040355,-223.2317742,0.00021918,2]
[327711866,1716351040365,-32013.97256527,0.00022,2]
[327711867,1716351040375,-236.29637378,0.00023469,2]
[327711868,1716351040385,-646.25449112,0.00024269,2]
[327711869,1716351040394,-220.389092,0.00024384,2]
[327711870,1716351040404,-151.0,0.00024587,5]
[327711871,1716351040413,-151.0,0.00024587,5]
[327711872,1716351040422,-362.20721548,0.00025076,2]
[327711873,1716351040432,-236.29637374,0.00025077,2]
[327711874,1716351040442,-151.0,0.0002539,5]
[327711875,1716351040453,-151.0,0.0002539,5]
[327711876,1716351040463,-465.66,0.00025515,3]
[327711877,1716351040472,-388.05,0.00025515,3]
[327711878,1716351040482,-373.42,0.00025516,3]
[327711879,1716351040493,-1129.38202102,0.00025524,2]
[327711880,1716351040502,-171.23599612,0.00025524,2]
[327711881,1716351040512,-202.77558718,0.00025524,2]
[327711882,1716351040523,-478.84986663,0.00025524,2]
[327711883,1716351040535,-1129.38202102,0.00025524,2]
[327711884,1716351040544,-1129.38202102,0.00025524,2]
[327711885,1716351040554,-500.0,0.00025524,2]
[327711886,1716351040564,-1129.38202102,0.00025524,2]
[327711887,1716351040573,-1129.38202102,0.00025524,2]
[327711888,1716351040582,-1129.38202102,0.00025524,2]
[327711889,1716351040592,-1129.38202102,0.00025524,2]
[327711890,1716351040601,-1129.38202102,0.00025524,2]
[327711891,1716351040611,-1129.38202102,0.00025524,2]
[327711892,1716351040621,-1129.38202102,0.00025524,2]
[327711893,1716351040629,-1129.38202102,0.00025524,2]
[327711894,1716351040638,-1129.38202102,0.00025524,2]
[327711895,1716351040648,-1129.38202102,0.00025524,2]
[327711896,1716351040657,-1129.38202102,0.00025524,2]
[327711897,1716351040666,-1129.38202102,0.00025524,2]
[327711898,1716351040676,-1129.38202102,0.00025524,2]
[327711899,1716351040684,-1129.38202102,0.00025524,2]
[327711900,1716351040693,-1129.38202102,0.00025524,2]
[327711901,1716351040703,-1129.38202102,0.00025524,2]
[327711902,1716351040712,-1129.38202102,0.00025524,2]
[327711903,1716351040721,-1129.38202102,0.00025524,2]
[327711904,1716351040730,-1129.38202102,0.00025524,2]
[327711905,1716351040739,-1129.38202102,0.00025524,2]
[327711906,1716351040749,-1129.38202102,0.00025524,2]
[327711907,1716351040758,-1129.38202102,0.00025524,2]
[327711908,1716351040768,-487.54256735,0.00025524,2]
[327711926,1716351043163,-641.83945367,0.00025524,2]
[327711927,1716351043173,-1129.38202102,0.00025524,2]
[327711928,1716351043182,-1129.38202102,0.00025524,2]
[327711929,1716351043192,-1129.38202102,0.00025524,2]
[327711931,1716351043202,-1129.38202102,0.00025524,2]
[327711932,1716351043211,-1129.38202102,0.00025524,2]
[327711933,1716351043221,-1129.38202102,0.00025524,2]
[327711934,1716351043232,-1129.38202102,0.00025524,2]
[327711935,1716351043242,-1129.38202102,0.00025524,2]
[327711936,1716351043251,-1129.38202102,0.00025524,2]
[327711937,1716351043261,-1129.38202102,0.00025524,2]
[327711938,1716351043271,-1129.38202102,0.00025524,2]
[327711939,1716351043281,-1129.38202102,0.00025524,2]
[327711940,1716351043291,-1129.38202102,0.00025524,2]
[327711941,1716351043300,-1129.38202102,0.00025524,2]
[327711942,1716351043309,-1129.38202102,0.00025524,2]
[327711943,1716351043318,-926.92704965,0.00025524,2]